Cogmind - Beta 13 @@@ ROGUE MODE // 2024.04.05 @ 17:16:05 Player: Papweer Result: Destroyed by Autobeam Turret with Autobeam Performance ------------- Evolutions (0) 0 Regions Visited (2) 400 Robots Destroyed (19) 95 Value Destroyed (416) 416 Prototype IDs (0) 0 Alien Tech Used (0) 0 Bonus (0) 0 TOTAL SCORE: 911 Bonus ------- None Cogmind --------- Core Integrity 0/250 Matter 251/300 Energy 100/100 System Corruption 0% Temperature Cool (6) Movement Core (350) Ox6 Location -10/Subcaves Parts ------- > --- POWER (1) -------- (None) > --- PROPULSION (2) --- (None) > --- UTILITY (2) ------ Large Storage Unit Signal Interpreter > --- WEAPON (2) ------- (None) > --- INVENTORY (15) --- Ion Engine Light Ion Engine Improved Heat Sink Visual Processing Unit Sensor Array ECM Suite Particle Gun Grenade Launcher Grenade Launcher Grenade Launcher Peak State ------------ > --- POWER ------------ Light Ion Engine > --- PROPULSION ------- Light Treads Light Treads > --- UTILITY ---------- Improved Heat Sink Small Storage Unit > --- WEAPON ----------- Light Assault Rifle Light Assault Rifle > --- INVENTORY -------- Light Ion Engine Light Treads [Rating: 9] Favorites ----------- Power Light Ion Engine Engine Light Ion Engine Propulsion Light Treads Treads Light Treads Utility Signal Interpreter Device Improved Heat Sink Storage Large Storage Unit Processor Signal Interpreter Weapon Grenade Launcher Energy Cannon Beam Cannon Ballistic Gun Light Assault Rifle Launcher Grenade Launcher Build | -11 -10 -10 ------- Run | Yrd Mat Sub Slots Evolved . | . . . Power . | . . . Propulsion . | . . . Utility . | . . . Weapon . | . . . Parts Attached 17 | 6 11 . Power 1 | 1 . . Engine 1 | 1 . . Core . | . . . Reactor . | . . . Propulsion 5 | 2 3 . Treads 5 | 2 3 . Leg . | . . . Wheel . | . . . Hover . | . . . Flight . | . . . Utility 4 | 1 3 . Device 1 | . 1 . Storage 2 | 1 1 . Processor 1 | . 1 . Hackware . | . . . Protection . | . . . Artifact . | . . . Weapon 7 | 2 5 . Energy Gun . | . . . Energy Cannon 1 | . 1 . Ballistic Gun 2 | 2 . . Ballistic Cannon . | . . . Launcher 4 | . 4 . Special Weapon . | . . . Impact Weapon . | . . . Slashing Weapon . | . . . Piercing Weapon . | . . . Special Melee Weapon . | . . . Unidentified Prototypes . | . . . Parts Lost 5 | . 2 3 Power 1 | . 1 . Propulsion 2 | . 1 1 Utility . | . . . Weapon 2 | . . 2 Highest Loss Streak 3 | . 2 3 To Critical Strikes . | . . . Average Slot Usage (%) 72 | . 73 69 Engine 2 | . 3 . Treads 17 | . 18 13 Device 1 | . 2 . Storage 13 | . 13 14 Processor 11 | . 11 14 Energy Cannon 3 | . 5 . Ballistic Gun 9 | . 12 . Launcher 10 | . 5 27 Naked Turns . | . . . Heaviest Build 26 | 10 26 26 Greatest Support 40 | 40 40 20 Greatest Overweight (x) 8 | . 6 8 Average Overweight (x) . | . . 1 Largest Inventory Capacity 15 | 8 15 15 Average Capacity 12 | 6 11 15 Most Carried 13 | 1 13 10 Average Carried 7 | . 7 10 Final Capacity 15 | 8 15 15 Final Carried 10 | 1 10 10 Class Distribution -------------------- 100% | Mutant Dominant Class ---------------- Mutant | -10/Materials Mutant | -10/Subcaves Resources | -11 -10 -10 ----------- Run | Yrd Mat Sub Matter Collected 495 | 225 228 42 Remotely . | . . . Salvage Created 432 | . 411 21 Parts 35 | . 28 7 Haulers Intercepted . | . . . Recyclers Shooed . | . . . Parts Field Recycled . | . . . Retrieved Matter . | . . . Parts Self-Destructed 7 | . . 7 Prevented . | . . . Kills | -11 -10 -10 ------- Run | Yrd Mat Sub Combat Hostiles Destroyed 15 | . 11 4 Guns 4 | . 4 . Cannons 2 | . 2 . AOE 9 | . 5 4 Classes Destroyed 5 | . 5 . Worker 1 | . 1 . Builder 1 | . 1 . Watcher 2 | . 2 . Swarmer 7 | . 3 4 Grunt 8 | . 8 . Best Kill Streak 4 | . 4 4 Combat Bots Only 4 | . 3 4 Max Kills in Single Turn 3 | . 3 3 Gunslinging . | . . . Exploded 3 | . 3 3 Melee . | . . . Uniques/NPCs Destroyed . | . . . Combat | -11 -10 -10 -------- Run | Yrd Mat Sub Hostile Shots Fired 129 | . 97 32 Missed 41 | . 32 9 Damage Taken 1082 | . 874 208 Core 257 | . 206 51 Absorbed by Shields . | . . . Regen/Repaired (Parts) 66 | . 66 . Core Remaining (%) 100 | 100 . . Volleys Fired 44 | . 42 2 Largest 2 | . 2 2 Hottest 80 | . 80 60 Shots Fired 84 | . 80 4 Gun 62 | . 62 . Cannon 8 | . 8 . Launcher 14 | . 10 4 Special . | . . . Kinetic 62 | . 62 . Thermal 8 | . 8 . Explosive 14 | . 10 4 Electromagnetic . | . . . Robot Hit Streak 15 | . 15 13 Robot Miss Streak 3 | . 3 . Penetration Max . | . . . Secondary Targets 1 | . 1 . Max Gunslinging Chain 1 | . 1 . Shots Hit Robots 58 | . 56 2 Core Hits 34 | . 29 5 Critical Kills . | . . . Critical Parts Destroyed 1 | . 1 . Critical Strikes 1 | . 1 . Destroy 1 | . 1 . Melee Attacks . | . . . Impact . | . . . Slashing . | . . . Piercing . | . . . Sneak Attacks . | . . . Combat Hostiles . | . . . Follow-up Attacks . | . . . Damage Inflicted 989 | . 827 162 Guns 380 | . 380 . Cannons 121 | . 121 . Explosions 487 | . 325 162 Melee . | . . . Ramming 1 | . 1 . Kinetic 380 | . 380 . Thermal 121 | . 121 . Explosive 487 | . 325 162 Electromagnetic . | . . . Impact . | . . . Slashing . | . . . Piercing . | . . . Highest Corruption . | . . . Average Corruption . | . . . Corruption Purged . | . . . Corruption Blocked . | . . . Overload Shots . | . . . Overflow Damage . | . . . Projectiles . | . . . Explosions . | . . . Melee . | . . . Knockbacks . | . . . Impact . | . . . Kinetic . | . . . Secondary . | . . . Self-Inflicted Damage 131 | . 81 50 Shots 7 | . 5 2 Rammed 1 | . 1 . Targets Rammed 1 | . 1 . Kicked . | . . . Crushed . | . . . Highest Temperature 208 | . 208 . Average Temperature 65 | . 65 . Received Heat Transfer 423 | . 351 72 Siege Activations . | . . . Robots Corrupted . | . . . Combat Hostiles . | . . . Parts Fried . | . . . Impact Corruptions . | . . . Robots Melted . | . . . Combat Hostiles . | . . . Parts Melted . | . . . Heat Transferred 259 | . 259 . Parts Sabotaged . | . . . Parts Stolen . | . . . Parts Stripped . | . . . Power Chain Reactions . | . . . Alert | -11 -10 -10 ------- Run | Yrd Mat Sub Peak Influence 129 | . 129 . Initial . | . . . Average 60 | . 64 . Maximum Alert Level . | . . . Low Security (%) 100 | 100 100 . Level 1 . | . . . Level 2 . | . . . Level 3 . | . . . Level 4 . | . . . Level 5 . | . . . High Security . | . . . Max Security . | . . . Squads Dispatched 2 | . 2 . Investigation . | . . . Extermination . | . . . Reinforcement 2 | . 2 . Assault . | . . . Garrison . | . . . Intercept . | . . . Searches Triggered . | . . . Construction Impeded . | . . . Haulers Reinforced . | . . . Active Scanning Responses . | . . . Cargo Convoy Interrupts . | . . . Stealth | -11 -10 -10 --------- Run | Yrd Mat Sub Distress Signals . | . . . Communications Jammed . | . . . Distress Signals . | . . . Times Spotted 29 | . 16 13 Peak Tracking Total 6 | . 4 6 Tactical Retreats 2 | . . 2 Traps | -11 -10 -10 ------- Run | Yrd Mat Sub Traps Triggered 2 | . 2 . Indirectly . | . . . Trap Hack Attempts . | . . . Triggered . | . . . Disarmed . | . . . Reprogrammed . | . . . Reused . | . . . Traps Extracted . | . . . Installed . | . . . Triggered . | . . . Machines | -11 -10 -10 ---------- Run | Yrd Mat Sub Machines Disabled 1 | . 1 . Max in Single Turn 1 | . 1 . Machines Repaired . | . . . Machines Dismantled . | . . . Machines Sabotaged . | . . . Overloaded Fab Kills . | . . . Hacking | -11 -10 -10 --------- Run | Yrd Mat Sub Machines Accessed 6 | . 6 . Terminals 4 | . 4 . Fabricators . | . . . Repair Stations 1 | . 1 . Recycling Units 1 | . 1 . Scanalyzers . | . . . Garrison Access . | . . . Total Hacks 16 | . 16 . Successful 8 | . 8 . Failed 8 | . 8 . Catastrophic . | . . . Database Lockouts . | . . . Manual . | . . . Terminals 13 | . 13 . Fabricators . | . . . Repair Stations 2 | . 2 . Recycling Units 1 | . 1 . Scanalyzers . | . . . Garrison Access . | . . . Terminal Hacks 5 | . 5 . Terminal Index 1 | . 1 . Locate Traps 1 | . 1 . Dispatch Records 2 | . 2 . Registered Components 1 | . 1 . Fabricator Hacks . | . . . Repair Station Hacks 2 | . 2 . Scan Component 1 | . 1 . Repair 1 | . 1 . Recycling Unit Hacks 1 | . 1 . Report Inventory 1 | . 1 . Scanalyzer . | . . . Garrison Access Hacks . | . . . Unauthorized Hacks . | . . . Terminals . | . . . Fabricators . | . . . Repair Stations . | . . . Recycling Units . | . . . Scanalyzers . | . . . Garrison Access . | . . . Data Cores Recovered . | . . . Used . | . . . Hacking Detections 3 | . 3 . Full Trace Events . | . . . Feedback Events . | . . . Feedback Blocked . | . . . Robot Schematics Acquired . | . . . Robots Built . | . . . Authchips . | . . . Time . | . . . Total Robot Build Rating . | . . . Part Schematics Acquired . | . . . Parts Built . | . . . Authchips . | . . . Time . | . . . Total Part Build Rating . | . . . Parts Repaired 1 | . 1 . Time 26 | . 26 . Parts Recycled . | . . . Recycled Matter . | . . . Retrieved Matter . | . . . Retrieved Components . | . . . Parts Scanalyzed . | . . . Part Schematics Acquired . | . . . Parts Damaged . | . . . Bothacking | -11 -10 -10 ------------ Run | Yrd Mat Sub Used RIF Installer . | . . . Robots Hacked . | . . . Non-combat . | . . . Combat . | . . . Robot Hacks Applied . | . . . Relay Couplers Released . | . . . Fabnet Peak Effective % . | . . . Robots Rewired . | . . . Allies Hacked . | . . . Hacks Repelled . | . . . Allies | -11 -10 -10 -------- Run | Yrd Mat Sub Total Allies . | . . . Largest Group . | . . . Highest-Rated Group . | . . . Highest-Rated Ally . | . . . Total Orders . | . . . Ally Attacks . | . . . Total Damage . | . . . Kills . | . . . Allies Corrupted . | . . . Allies Melted . | . . . Intel | -11 -10 -10 ------- Run | Yrd Mat Sub Robot Analysis Total . | . . . Derelict Logs Recovered . | . . . Drone Launches . | . . . Drone Recoveries . | . . . Exploration | -11 -10 -10 ------------- Run | Yrd Mat Sub Turns Passed 2231 | 91 1667 473 Spaces Moved 1054 | 55 808 191 Core 13 | 5 4 4 Treads 1041 | 50 804 187 Legs . | . . . Wheels . | . . . Hover . | . . . Flight . | . . . Fastest Speed 50 | 50 160 240 Average Speed 194 | 150 185 243 Slowest Speed 450 | 160 350 450 Overloaded Moves . | . . . Propulsion Burnouts . | . . . Robots Hopped . | . . . Cave-ins Triggered . | . . . Exploration Rate (%) 38 | 4 97 15 Regions Visited 2 Branch Regions 1 Pre-discovered Areas . | . . . Known Exits Taken 1 | . 1 . Unknown Exits Taken 1 | 1 . . Scrap Searched . | . . . Spaces Dug 43 | . 43 . Terrain Destroyed 86 | . 67 19 Melee . | . . . Projectile . | . . . AOE 86 | . 67 19 Terrain Rammed . | . . . Walls Destroyed . | . . . Machines Disabled . | . . . Actions | -11 -10 -10 --------- Run | Yrd Mat Sub Total 1167 | 61 910 196 Wait 29 | . 26 3 Move 1052 | 54 807 191 Hop . | . . . Pick Up 19 | 1 18 . Fast Attach 7 | 6 1 . Attach 9 | . 9 . Detach 1 | . 1 . Swap 1 | . 1 . Drop 4 | . 4 . Fire 44 | . 42 2 Melee . | . . . Ram . | . . . Kick . | . . . Crush 1 | . 1 . Escape Stasis . | . . . Rewire . | . . . Trap . | . . . Miscellaneous . | . . . Route ------- -11/Scrapyard -10/Materials (discovered 6 exits: *Mat x3 / *Min x2 / *Sub) -10/Subcaves History --------- Turn | Location | Event 62 | -11/Scrapyard | Discovered new exit (range 14) 92 | -11/Scrapyard | Entered Materials 289 | -10/Materials | Discovered new exit (range 3) 316 | -10/Materials | Build established: Mutant 534 | -10/Materials | Core integrity fell below 50% 560 | -10/Materials | Discovered new exit (range 7) 568 | -10/Materials | Identified exit to Materials 674 | -10/Materials | Repaired Lgt. Treads 1066 | -10/Materials | Discovered new exit (range 8) 1088 | -10/Materials | Identified exit to Mines 1257 | -10/Materials | Discovered exit to Materials (range 5) 1299 | -10/Materials | Core integrity fell below 20% 1426 | -10/Materials | Discovered exit to Mines (range 9) 1505 | -10/Materials | Discovered new exit (range 8) 1522 | -10/Materials | Identified exit to Subcaves 1759 | -10/Materials | Entered Subcaves 1854 | -10/Subcaves | Shifting Twisted Machinery released Sub. Beam Cannon 2066 | -10/Subcaves | Shifting Twisted Machinery released Sub. Optics 2128 | -10/Subcaves | Shifting Twisted Machinery released Sub. Machine Gun 2185 | -10/Subcaves | Shifting Twisted Machinery released Sub. Monowheel 2232 | -10/Subcaves | Destroyed by Autobeam Turret with Autobeam Last Messages --------------- Machinery. Sub. Monowheel falls loose from the Twisted Machinery. 02201_ Acquired 42 matter. 02208_ S-10 Pest destroyed. 02208_ Lgt. Treads destroyed. 02211_ Subatomizers dissect the Lgt. Ion Engine. 02212_ Lgt. Ion Engine fries itself beyond repair. 02219_ S-10 Pest destroyed. 02221_ Subatomizers dissect the Lgt. Assault Rifle. 02221_ The unstable cave ceiling collapses. 02222_ Flight Unit fries itself beyond repair. 02226_ Lgt. Ion Engine fries itself beyond repair. 02226_ The unstable cave ceiling collapses. 02226_ Grenade Launcher destroyed. 02232_ Lgt. Assault Rifle fries itself beyond repair. Map ----- +----------------------------------------------------+ | ?????????????????????????????????????????????????? | | ?????????????????????????????????????????????????? | | ?????????????????????????????????????????????????? | | ?????????????????????????????????????????????????? | | ?????????????????????????????????????????????????? | | ?????????????????????????????????????????????????? | | ?????????????????????????????????????????????????? | | ?????????????????????????????????????????????????? | | ?????????????????????????????????????????????????? | | ?????????????????????????????????????????????????? | | ?????????????????????????????????????????????????? | | ?????????????????????????????????????????????????? | | ?????????????????????????????????????????????????? | | ????????????????????????????????? ?????????????? | | ?????????????????# ?????????????? #?????????????? | | ?????????????????# ????????????? ## ???????????? | | ???????????????### ?????????### #??????????? | | ???????????????# ##???????# # #??????????? | | ???????????????# #?????# #?????????? | | ??????????? ???## #??## ?????????? | | ??????????? ## ### ?????????? | | ??????????"t % ????????? | | ?????????? ?????????? | | ??????????? ?????????? | | ???????????????# ! & ?????????????? | | ????????????????# @ #????????????????????? | | ????????????????##% #### & #????????????????????? | | ???????????????????????# #????????????????????? | | ??????????????###??????# #????????????????????? | | ?????????????## ##?????# ##????????????????????? | | ???????????### ####### ##???????????????????? | | ??????????## ## # ## #???????????????????? | | ??????????# ## #???????????????????? | | ??????????# # ##???????????????????? | | ?????????## # #????????????????????? | | #????###?# ##" #"## #???????????????????? | | ###### #### ### ##### ###???????????????????? | | #### #?# #???" #????????????????????? | | # #?# #?# ##??"""##????????????????????? | | ## #### ### ## """"?????????????????????? | | ?# ## #### [" """""#????????????????????? | | ?#### ### ""## """ ?????????????????????? | | #### ## ## #???????????????????????????? | | # ### ##?????????????????????????????? | | #?# "#?????????????????????????????? | | ## ##?????????????????????????????? | | ### # ## #####??????????????????????????????? | | ##### ##??????????????????????????????????? | | # ##???????????????????????????????????? | | " ##???????????????????????????????????? | +----------------------------------------------------+ Best States ------------- Heat Dissipation 39 Energy Generation 10 Energy Capacity 125 Matter Stores 300 Matter Capacity 300 Sight Range 16 Terrain Scan Density 10 Evasion (%) 40 Recoil Reduction 2 Item Schematics ----------------- None Robot Schematics ------------------ None Fabricated ------------ Nothing Alien Tech Used ----------------- None Achievements -------------- None Challenges ------------ None Game ------ Seed RefinerySubdwellerAxe Manual? 0 Play Time 00:16:47 Cumulative 2.7 hours Start 2024.04.05 @ 17:01:01 End 2024.04.05 @ 17:16:05 Sessions 1 Manual Loads 0 Difficulty Rogue Special Mode None Game No. 5 Rogue 3 Adventurer 2 Explorer 0 Win Type - Total 0 Types 0/0/0/0/0/0/0/0/0 Lore% 2 Gallery% 4 Achievement% 5 Wizard Run 0 Options --------- Layout 1 ASCII 0 Keyboard 0 Movement Mouse Keybinds 0 Fullscreen 2 Font 24/Terminus Map View 50x35 Zoom Use 0% Tactical HUD 1 Map Filters NONE Filters NONE Steam 0 RUN: 3757c371-10d3-4a80-99a6-15102032412f